[Event "Early-Titled-Tuesday-Blitz-June-18-2024"]
[Site "Chess.com"]
[Date "2024.06.18"]
[Round "2"]
[White "FredddieCroderg"]
[Black "Hsper248"]
[Result "0-1"]
[WhiteElo "2307"]
[BlackElo "2719"]
[TimeControl "180+1"]
[EndTime "8:19:10 PDT"]
[Termination "Hsper248 won on time"]

1. e4 {[%clk 0:02:50.1]} 1... c5 {[%clk 0:02:59.1]} 2. Bc4 {[%clk 0:02:48.4]}
2... Nc6 {[%clk 0:02:56.6]} 3. d3 {[%clk 0:02:47.5]} 3... e6 {[%clk 0:02:54.3]}
4. Qf3 {[%clk 0:02:43.4]} 4... Ne5 {[%clk 0:02:48.9]} 5. Qg3 {[%clk 0:02:42.7]}
5... Nxc4 {[%clk 0:02:46.7]} 6. dxc4 {[%clk 0:02:42.6]} 6... h5 {[%clk
0:02:38.1]} 7. h4 {[%clk 0:02:36.6]} 7... Nf6 {[%clk 0:02:35.1]} 8. e5 {[%clk
0:02:33.1]} 8... Ng4 {[%clk 0:02:34.9]} 9. Nc3 {[%clk 0:02:26.4]} 9... d6 {[%clk
0:02:23.7]} 10. Bg5 {[%clk 0:02:23.8]} 10... Qb6 {[%clk 0:02:19.5]} 11. O-O-O
{[%clk 0:02:19.8]} 11... Nxe5 {[%clk 0:02:08.8]} 12. b3 {[%clk 0:01:28]} 12...
Bd7 {[%clk 0:02:05.9]} 13. Bf4 {[%clk 0:01:24.7]} 13... Qc7 {[%clk 0:01:49.3]}
14. Nf3 {[%clk 0:01:14.9]} 14... Nxf3 {[%clk 0:01:40]} 15. gxf3 {[%clk
0:01:14.9]} 15... O-O-O {[%clk 0:01:32.2]} 16. Bxd6 {[%clk 0:01:13.6]} 16...
Bxd6 {[%clk 0:01:31.7]} 17. Rxd6 {[%clk 0:01:13.2]} 17... Bc6 {[%clk 0:01:05.5]}
18. Rhd1 {[%clk 0:01:10.4]} 18... Rxd6 {[%clk 0:00:31.9]} 19. Rxd6 {[%clk
0:01:08.9]} 19... Rd8 {[%clk 0:00:29.7]} 20. Rxd8+ {[%clk 0:01:08.3]} 20... Kxd8
{[%clk 0:00:30.6]} 21. Qxg7 {[%clk 0:01:05.5]} 21... Qf4+ {[%clk 0:00:30.4]} 22.
Kb2 {[%clk 0:01:03]} 22... Bxf3 {[%clk 0:00:28.5]} 23. Qf8+ {[%clk 0:00:59.5]}
23... Kd7 {[%clk 0:00:28.8]} 24. Qxc5 {[%clk 0:00:54.2]} 24... b6 {[%clk
0:00:23.8]} 25. Qa3 {[%clk 0:00:44.8]} 25... a5 {[%clk 0:00:20.8]} 26. c5 {[%clk
0:00:40.5]} 26... Qb4 {[%clk 0:00:16.7]} 27. Qxb4 {[%clk 0:00:37.6]} 27... axb4
{[%clk 0:00:16.9]} 28. Na4 {[%clk 0:00:37.6]} 28... b5 {[%clk 0:00:15.3]} 29.
Nb6+ {[%clk 0:00:35.1]} 29... Kc6 {[%clk 0:00:15.8]} 30. c3 {[%clk 0:00:27]}
30... Kxc5 {[%clk 0:00:13.5]} 31. Nd7+ {[%clk 0:00:26.4]} 31... Kd6 {[%clk
0:00:14]} 32. Nf6 {[%clk 0:00:26.4]} 32... Kc5 {[%clk 0:00:13.1]} 33. cxb4+
{[%clk 0:00:25.4]} 33... Kxb4 {[%clk 0:00:13.1]} 34. Nd7 {[%clk 0:00:24.4]}
34... Be2 {[%clk 0:00:06.1]} 35. a3+ {[%clk 0:00:23]} 35... Ka5 {[%clk
0:00:06.2]} 36. Ne5 {[%clk 0:00:22.8]} 36... f6 {[%clk 0:00:06.3]} 37. Nd7
{[%clk 0:00:19]} 37... f5 {[%clk 0:00:06.4]} 38. Kc3 {[%clk 0:00:18.2]} 38...
Bd1 {[%clk 0:00:04]} 39. Nc5 {[%clk 0:00:16.8]} 39... e5 {[%clk 0:00:03.9]} 40.
Ne6 {[%clk 0:00:14.9]} 40... f4 {[%clk 0:00:03.8]} 41. Ng5 {[%clk 0:00:13.4]}
41... Kb6 {[%clk 0:00:03.9]} 42. Ne4 {[%clk 0:00:12.4]} 42... Bf3 {[%clk
0:00:04]} 43. Nd2 {[%clk 0:00:11.5]} 43... Bg4 {[%clk 0:00:04.6]} 44. Kd3 {[%clk
0:00:10.6]} 44... Bf5+ {[%clk 0:00:05.1]} 45. Kc3 {[%clk 0:00:10.1]} 45... Kc5
{[%clk 0:00:06]} 46. b4+ {[%clk 0:00:09.8]} 46... Kd5 {[%clk 0:00:06.7]} 47. Kb3
{[%clk 0:00:06.7]} 47... e4 {[%clk 0:00:07.6]} 48. a4 {[%clk 0:00:06.7]} 48...
Bd7 {[%clk 0:00:08.4]} 49. axb5 {[%clk 0:00:06.1]} 49... Bxb5 {[%clk 0:00:08.7]}
50. Kc3 {[%clk 0:00:06.5]} 50... e3 {[%clk 0:00:08.1]} 51. fxe3 {[%clk
0:00:06.6]} 51... fxe3 {[%clk 0:00:09]} 52. Nf3 {[%clk 0:00:05.9]} 52... Ke4
{[%clk 0:00:09.6]} 53. Ng5+ {[%clk 0:00:05.1]} 53... Kf4 {[%clk 0:00:10.2]} 54.
Ne6+ {[%clk 0:00:02.3]} 54... Kg3 {[%clk 0:00:10.8]} 55. Nd4 {[%clk 0:00:02.4]}
55... Kf2 {[%clk 0:00:08.9]} 0-1

[Event "Early-Titled-Tuesday-Blitz-June-18-2024"]
[Site "Chess.com"]
[Date "2024.06.18"]
[Round "2"]
[White "averageFM"]
[Black "Onischuk_V"]
[Result "0-1"]
[WhiteElo "2576"]
[BlackElo "2833"]
[TimeControl "180+1"]
[EndTime "8:19:12 PDT"]
[Termination "Onischuk_V won by resignation"]

1. e4 {[%clk 0:03:00.9]} 1... d6 {[%clk 0:02:59.8]} 2. d4 {[%clk 0:03:00.4]}
2... Nf6 {[%clk 0:03:00.5]} 3. Nc3 {[%clk 0:03:00.5]} 3... g6 {[%clk 0:03:01.2]}
4. Nf3 {[%clk 0:03:00.4]} 4... Bg7 {[%clk 0:03:01.1]} 5. Be2 {[%clk 0:03:00.4]}
5... O-O {[%clk 0:03:01]} 6. O-O {[%clk 0:03:00.5]} 6... a6 {[%clk 0:03:01.5]}
7. a4 {[%clk 0:03:00.6]} 7... Nc6 {[%clk 0:03:01.8]} 8. d5 {[%clk 0:03:00.3]}
8... Nb4 {[%clk 0:02:59.2]} 9. a5 {[%clk 0:02:59.8]} 9... e6 {[%clk 0:02:48.3]}
10. dxe6 {[%clk 0:02:42.8]} 10... Bxe6 {[%clk 0:02:47.6]} 11. Nd4 {[%clk
0:02:42.9]} 11... Bd7 {[%clk 0:02:44.9]} 12. Bg5 {[%clk 0:02:37.6]} 12... h6
{[%clk 0:02:42.6]} 13. Bh4 {[%clk 0:02:36.9]} 13... Re8 {[%clk 0:02:42.3]} 14.
Bd3 {[%clk 0:02:23.7]} 14... g5 {[%clk 0:02:23.4]} 15. Bg3 {[%clk 0:02:23.2]}
15... Ng4 {[%clk 0:02:23.2]} 16. Nf5 {[%clk 0:02:17.2]} 16... Bxf5 {[%clk
0:02:19.6]} 17. exf5 {[%clk 0:02:18.1]} 17... Ne5 {[%clk 0:02:05.9]} 18. Be4
{[%clk 0:02:13.1]} 18... Nc4 {[%clk 0:01:52.2]} 19. f6 {[%clk 0:01:46.8]} 19...
Bxf6 {[%clk 0:01:48.9]} 20. Bxb7 {[%clk 0:01:05.9]} 20... Rb8 {[%clk 0:01:47.8]}
21. Qf3 {[%clk 0:00:36.3]} 21... Nd2 {[%clk 0:01:47]} 22. Qf5 {[%clk 0:00:28.3]}
22... Rxb7 {[%clk 0:01:34.2]} 23. Rfe1 {[%clk 0:00:28.4]} 23... Bg7 {[%clk
0:01:26.7]} 24. Nd5 {[%clk 0:00:18.2]} 24... Rb8 {[%clk 0:01:10.6]} 25. Rxe8+
{[%clk 0:00:08]} 25... Qxe8 {[%clk 0:01:10.6]} 26. Nxc7 {[%clk 0:00:08.3]} 26...
Qc6 {[%clk 0:01:08.1]} 27. Rd1 {[%clk 0:00:08.2]} 27... Ne4 {[%clk 0:01:01.9]}
28. c3 {[%clk 0:00:08.4]} 28... Nxg3 {[%clk 0:00:59.4]} 29. hxg3 {[%clk
0:00:08.3]} 29... Qxc7 {[%clk 0:00:59.7]} 30. cxb4 {[%clk 0:00:08.6]} 30... Rxb4
{[%clk 0:00:59.6]} 31. Re1 {[%clk 0:00:09.1]} 31... Qc6 {[%clk 0:00:53.4]} 32.
Re7 {[%clk 0:00:07.1]} 32... Qc4 {[%clk 0:00:24]} 33. Re8+ {[%clk 0:00:07.3]}
33... Bf8 {[%clk 0:00:23.7]} 34. Qf6 {[%clk 0:00:07.8]} 34... Qd4 {[%clk
0:00:16.9]} 35. Qxh6 {[%clk 0:00:07.3]} 35... Qg7 {[%clk 0:00:12.3]} 36. Qxd6
{[%clk 0:00:07.4]} 36... Rxb2 {[%clk 0:00:11.9]} 37. Qd1 {[%clk 0:00:03.9]}
37... Ra2 {[%clk 0:00:09.6]} 38. Qh5 {[%clk 0:00:02.4]} 38... Rxa5 {[%clk
0:00:05.5]} 39. g4 {[%clk 0:00:02.8]} 39... Ra1+ {[%clk 0:00:05.5]} 40. Kh2
{[%clk 0:00:02.8]} 40... a5 {[%clk 0:00:05.9]} 41. g3 {[%clk 0:00:03.1]} 41...
a4 {[%clk 0:00:06.1]} 42. Ra8 {[%clk 0:00:02.8]} 42... a3 {[%clk 0:00:06]} 43.
Ra5 {[%clk 0:00:02.7]} 43... Be7 {[%clk 0:00:04.4]} 44. Ra8+ {[%clk 0:00:02.8]}
44... Bf8 {[%clk 0:00:04.5]} 45. Ra5 {[%clk 0:00:03.4]} 45... Qh6 {[%clk
0:00:04.8]} 46. Rxg5+ {[%clk 0:00:03.3]} 46... Kh8 {[%clk 0:00:05.2]} 47. Ra5
{[%clk 0:00:02.6]} 47... Qxh5+ {[%clk 0:00:05.1]} 48. gxh5 {[%clk 0:00:03.3]}
48... Rb1 {[%clk 0:00:03.5]} 49. Kh3 {[%clk 0:00:03.4]} 49... Rb2 {[%clk
0:00:04]} 50. f4 {[%clk 0:00:03.4]} 50... a2 {[%clk 0:00:04.4]} 51. Kg4 {[%clk
0:00:04]} 51... Bg7 {[%clk 0:00:04.4]} 52. Ra8+ {[%clk 0:00:03.5]} 52... Kh7
{[%clk 0:00:04.1]} 53. Kf5 {[%clk 0:00:03.7]} 53... Rc2 {[%clk 0:00:04.8]} 54.
g4 {[%clk 0:00:04.2]} 54... a1=Q {[%clk 0:00:05.4]} 0-1

[Event "Early-Titled-Tuesday-Blitz-June-18-2024"]
[Site "Chess.com"]
[Date "2024.06.18"]
[Round "2"]
[White "Abund"]
[Black "Pelusiansky"]
[Result "0-1"]
[WhiteElo "2732"]
[BlackElo "2431"]
[TimeControl "180+1"]
[EndTime "8:19:13 PDT"]
[Termination "Pelusiansky won by resignation"]

1. e4 {[%clk 0:03:00.9]} 1... e5 {[%clk 0:03:00.1]} 2. Nf3 {[%clk 0:03:00.5]}
2... Nf6 {[%clk 0:02:58.5]} 3. Nxe5 {[%clk 0:02:59.6]} 3... d6 {[%clk
0:02:58.3]} 4. Nf3 {[%clk 0:02:59.2]} 4... Nxe4 {[%clk 0:02:58.8]} 5. d4 {[%clk
0:02:59.3]} 5... d5 {[%clk 0:02:54.9]} 6. Bd3 {[%clk 0:02:58.6]} 6... Bb4+
{[%clk 0:02:54.1]} 7. c3 {[%clk 0:02:55.8]} 7... Bd6 {[%clk 0:02:53.7]} 8. O-O
{[%clk 0:02:55.4]} 8... O-O {[%clk 0:02:54]} 9. Re1 {[%clk 0:02:45.3]} 9... Bf5
{[%clk 0:02:38.3]} 10. Qb3 {[%clk 0:02:32.5]} 10... Nc6 {[%clk 0:02:27.3]} 11.
Qxb7 {[%clk 0:02:22.6]} 11... Ne7 {[%clk 0:02:26.6]} 12. Qa6 {[%clk 0:02:00.7]}
12... Ng6 {[%clk 0:02:19.1]} 13. Nbd2 {[%clk 0:01:54.4]} 13... Nh4 {[%clk
0:02:09.7]} 14. g3 {[%clk 0:01:48.1]} 14... Nxf3+ {[%clk 0:02:01.3]} 15. Nxf3
{[%clk 0:01:48.3]} 15... Qf6 {[%clk 0:02:02.1]} 16. Bf4 {[%clk 0:01:23.3]} 16...
Rab8 {[%clk 0:01:48.2]} 17. Bxd6 {[%clk 0:00:55.1]} 17... cxd6 {[%clk
0:01:40.5]} 18. Rab1 {[%clk 0:00:44.3]} 18... Bc8 {[%clk 0:01:34]} 19. Qxa7
{[%clk 0:00:30.5]} 19... Rb7 {[%clk 0:01:34.3]} 20. Qa5 {[%clk 0:00:14.1]} 20...
Qxf3 {[%clk 0:01:31.4]} 21. Bxe4 {[%clk 0:00:14.4]} 21... dxe4 {[%clk
0:01:26.9]} 22. Re3 {[%clk 0:00:14.8]} 22... Qf5 {[%clk 0:01:23.3]} 23. Qxf5
{[%clk 0:00:09.8]} 23... Bxf5 {[%clk 0:01:22.6]} 24. d5 {[%clk 0:00:10.3]} 24...
Ra8 {[%clk 0:01:15.4]} 25. c4 {[%clk 0:00:09.1]} 25... Rxa2 {[%clk 0:00:54.5]}
26. b4 {[%clk 0:00:08.3]} 26... Rc2 {[%clk 0:00:49.4]} 27. g4 {[%clk 0:00:08]}
27... Bg6 {[%clk 0:00:48.3]} 28. Ra1 {[%clk 0:00:04.4]} 28... h5 {[%clk
0:00:45.6]} 29. gxh5 {[%clk 0:00:03.1]} 29... Bxh5 {[%clk 0:00:44.6]} 30. c5
{[%clk 0:00:02.6]} 30... dxc5 {[%clk 0:00:42.5]} 31. bxc5 {[%clk 0:00:03.5]}
31... Rxc5 {[%clk 0:00:42.6]} 32. d6 {[%clk 0:00:04.2]} 32... Rd5 {[%clk
0:00:42]} 33. Rxe4 {[%clk 0:00:04.8]} 33... Rxd6 {[%clk 0:00:38.3]} 34. Rh4
{[%clk 0:00:03.3]} 34... Rh6 {[%clk 0:00:36.7]} 35. Ra5 {[%clk 0:00:02.9]} 35...
Bg6 {[%clk 0:00:35.4]} 36. Rxh6 {[%clk 0:00:03]} 36... gxh6 {[%clk 0:00:35.9]}
37. Kg2 {[%clk 0:00:03.5]} 37... Re7 {[%clk 0:00:32.6]} 38. Kg3 {[%clk
0:00:03.7]} 38... Kg7 {[%clk 0:00:31.1]} 39. h4 {[%clk 0:00:03.9]} 39... h5
{[%clk 0:00:31]} 40. Ra4 {[%clk 0:00:03.7]} 40... Re4 {[%clk 0:00:29.6]} 41. Ra5
{[%clk 0:00:04.1]} 41... Rg4+ {[%clk 0:00:29.7]} 42. Kh3 {[%clk 0:00:04.7]}
42... Rg1 {[%clk 0:00:29.6]} 43. Kh2 {[%clk 0:00:04.6]} 43... Re1 {[%clk
0:00:25.1]} 44. Kg3 {[%clk 0:00:04.5]} 44... Kf6 {[%clk 0:00:25.6]} 45. Ra6+
{[%clk 0:00:04.5]} 45... Re6 {[%clk 0:00:25.9]} 46. Ra5 {[%clk 0:00:05.1]} 46...
Bf5 {[%clk 0:00:26.3]} 47. Rb5 {[%clk 0:00:04.9]} 47... Kg6 {[%clk 0:00:24.9]}
48. Ra5 {[%clk 0:00:04.8]} 48... Rf6 {[%clk 0:00:25.1]} 49. Rb5 {[%clk 0:00:05]}
49... Bg4 {[%clk 0:00:25.4]} 50. Rb3 {[%clk 0:00:04.7]} 50... Rd6 {[%clk
0:00:22.6]} 51. Ra3 {[%clk 0:00:04.6]} 51... Bf5 {[%clk 0:00:22.5]} 52. Ra4
{[%clk 0:00:02.3]} 52... Rd3+ {[%clk 0:00:22.3]} 53. Kg2 {[%clk 0:00:02.9]}
53... f6 {[%clk 0:00:22.8]} 54. Rb4 {[%clk 0:00:03.1]} 54... Rd5 {[%clk
0:00:23.1]} 55. Ra4 {[%clk 0:00:03.3]} 55... Re5 {[%clk 0:00:23.6]} 56. Rb4
{[%clk 0:00:03.8]} 56... Re4 {[%clk 0:00:24.2]} 57. Rxe4 {[%clk 0:00:02.6]}
57... Bxe4+ {[%clk 0:00:24.6]} 58. Kg3 {[%clk 0:00:03.5]} 58... Kf5 {[%clk
0:00:24.3]} 59. Kh3 {[%clk 0:00:03.8]} 59... Bf3 {[%clk 0:00:24.1]} 60. Kg3
{[%clk 0:00:04]} 60... Ke4 {[%clk 0:00:24.5]} 61. Kh2 {[%clk 0:00:04.2]} 61...
Kf4 {[%clk 0:00:24.1]} 62. Kg1 {[%clk 0:00:04.4]} 62... Kg4 {[%clk 0:00:24.2]}
0-1

[Event "Early-Titled-Tuesday-Blitz-June-18-2024"]
[Site "Chess.com"]
[Date "2024.06.18"]
[Round "2"]
[White "evgchess5"]
[Black "KononenkoD"]
[Result "1-0"]
[WhiteElo "2936"]
[BlackElo "2630"]
[TimeControl "180+1"]
[EndTime "8:19:15 PDT"]
[Termination "evgchess5 won on time"]

1. e4 {[%clk 0:02:58.2]} 1... c6 {[%clk 0:02:59.4]} 2. d4 {[%clk 0:02:57.4]}
2... d5 {[%clk 0:03:00.3]} 3. e5 {[%clk 0:02:57.6]} 3... Bf5 {[%clk 0:02:59.7]}
4. h4 {[%clk 0:02:57.8]} 4... h5 {[%clk 0:02:59.3]} 5. c4 {[%clk 0:02:57.7]}
5... e6 {[%clk 0:02:59.4]} 6. Nc3 {[%clk 0:02:57.7]} 6... Ne7 {[%clk 0:02:57.7]}
7. Bg5 {[%clk 0:02:46.4]} 7... dxc4 {[%clk 0:02:49.3]} 8. Bxc4 {[%clk
0:02:45.1]} 8... Nd7 {[%clk 0:02:49.1]} 9. Nge2 {[%clk 0:02:42.5]} 9... Nb6
{[%clk 0:02:48.4]} 10. Bb3 {[%clk 0:02:42.1]} 10... Qd7 {[%clk 0:02:48.4]} 11.
Ng3 {[%clk 0:02:36.2]} 11... Bg6 {[%clk 0:02:47.8]} 12. O-O {[%clk 0:02:31]}
12... Nf5 {[%clk 0:02:47.2]} 13. Nxf5 {[%clk 0:02:29.5]} 13... Bxf5 {[%clk
0:02:48.1]} 14. Qd2 {[%clk 0:02:25.1]} 14... Be7 {[%clk 0:02:45.9]} 15. Rad1
{[%clk 0:02:24.2]} 15... O-O-O {[%clk 0:02:39.8]} 16. a4 {[%clk 0:02:16]} 16...
Kb8 {[%clk 0:02:34.2]} 17. a5 {[%clk 0:02:13.5]} 17... Nd5 {[%clk 0:02:33.8]}
18. Bxd5 {[%clk 0:01:49.2]} 18... cxd5 {[%clk 0:02:28.5]} 19. Rc1 {[%clk
0:01:45.1]} 19... Rc8 {[%clk 0:02:01.8]} 20. Bxe7 {[%clk 0:01:31.6]} 20... Qxe7
{[%clk 0:02:01.1]} 21. Qf4 {[%clk 0:01:31.8]} 21... Rc6 {[%clk 0:01:36.4]} 22.
Nxd5 {[%clk 0:01:29.2]} 22... exd5 {[%clk 0:01:33.6]} 23. Qxf5 {[%clk
0:01:17.1]} 23... Qe6 {[%clk 0:01:30.9]} 24. Qg5 {[%clk 0:01:09.9]} 24... g6
{[%clk 0:01:26.7]} 25. Rxc6 {[%clk 0:01:09.7]} 25... Qxc6 {[%clk 0:01:27.6]} 26.
Rc1 {[%clk 0:01:09.4]} 26... Qe6 {[%clk 0:01:24.3]} 27. Qd2 {[%clk 0:00:45.6]}
27... Rc8 {[%clk 0:01:21.1]} 28. Rxc8+ {[%clk 0:00:45.2]} 28... Qxc8 {[%clk
0:01:22]} 29. g3 {[%clk 0:00:39.7]} 29... a6 {[%clk 0:01:16.5]} 30. Kg2 {[%clk
0:00:38.2]} 30... Ka8 {[%clk 0:00:57.7]} 31. Qb4 {[%clk 0:00:37.9]} 31... Qc7
{[%clk 0:00:22.2]} 32. Qf8+ {[%clk 0:00:35.7]} 32... Ka7 {[%clk 0:00:22.3]} 33.
b4 {[%clk 0:00:29.6]} 33... Qd7 {[%clk 0:00:18.1]} 34. Qc5+ {[%clk 0:00:25]}
34... Ka8 {[%clk 0:00:17]} 35. Qf8+ {[%clk 0:00:24.4]} 35... Ka7 {[%clk
0:00:16.8]} 36. Qd6 {[%clk 0:00:22.3]} 36... Qb5 {[%clk 0:00:15.5]} 37. Qc5+
{[%clk 0:00:21.4]} 37... Kb8 {[%clk 0:00:15.8]} 38. Qxb5 {[%clk 0:00:20.5]}
38... axb5 {[%clk 0:00:16.7]} 39. g4 {[%clk 0:00:19.7]} 39... Kc7 {[%clk
0:00:17.6]} 40. gxh5 {[%clk 0:00:18.5]} 40... gxh5 {[%clk 0:00:18.5]} 41. Kg3
{[%clk 0:00:18.4]} 41... Kd7 {[%clk 0:00:19.3]} 42. Kf4 {[%clk 0:00:18.7]} 42...
Ke6 {[%clk 0:00:20.2]} 43. Kg5 {[%clk 0:00:18.9]} 43... f6+ {[%clk 0:00:19.8]}
44. exf6 {[%clk 0:00:17.7]} 44... Kf7 {[%clk 0:00:20.7]} 45. Kf5 {[%clk
0:00:17.9]} 45... Kf8 {[%clk 0:00:18.9]} 46. Kg6 {[%clk 0:00:17.8]} 46... Kg8
{[%clk 0:00:18.4]} 47. Kxh5 {[%clk 0:00:17.2]} 47... Kf7 {[%clk 0:00:18.4]} 48.
Kg5 {[%clk 0:00:17.4]} 48... Kf8 {[%clk 0:00:18.8]} 49. Kg6 {[%clk 0:00:17.5]}
49... Kg8 {[%clk 0:00:19.7]} 50. h5 {[%clk 0:00:17.7]} 50... Kf8 {[%clk
0:00:20.6]} 51. h6 {[%clk 0:00:17.9]} 51... Ke8 {[%clk 0:00:19.9]} 52. h7 {[%clk
0:00:17.1]} 52... Kd7 {[%clk 0:00:20.3]} 53. h8=Q {[%clk 0:00:17]} 53... b6
{[%clk 0:00:21.1]} 54. a6 {[%clk 0:00:15.7]} 54... Ke6 {[%clk 0:00:19.6]} 55. f7
{[%clk 0:00:15.5]} 55... Kd6 {[%clk 0:00:20.5]} 56. f8=Q+ {[%clk 0:00:15.2]}
56... Kc6 {[%clk 0:00:17.5]} 57. Qff6+ {[%clk 0:00:14.8]} 1-0

[Event "Early-Titled-Tuesday-Blitz-June-18-2024"]
[Site "Chess.com"]
[Date "2024.06.18"]
[Round "2"]
[White "SicilianPanzer"]
[Black "patzer-reloaded"]
[Result "1-0"]
[WhiteElo "2313"]
[BlackElo "2491"]
[TimeControl "180+1"]
[EndTime "8:19:21 PDT"]
[Termination "SicilianPanzer won on time"]

1. d4 {[%clk 0:02:58.2]} 1... Nf6 {[%clk 0:02:59]} 2. Nf3 {[%clk 0:02:57.6]}
2... e6 {[%clk 0:02:59.2]} 3. Bf4 {[%clk 0:02:50.7]} 3... b6 {[%clk 0:02:56.5]}
4. e3 {[%clk 0:02:48.4]} 4... c5 {[%clk 0:02:52.3]} 5. c3 {[%clk 0:02:46.8]}
5... Be7 {[%clk 0:02:51.1]} 6. Nbd2 {[%clk 0:02:46.1]} 6... O-O {[%clk
0:02:48.9]} 7. h3 {[%clk 0:02:45.2]} 7... Ba6 {[%clk 0:02:23.9]} 8. Bxa6 {[%clk
0:02:43.2]} 8... Nxa6 {[%clk 0:02:24.8]} 9. Qe2 {[%clk 0:02:42.3]} 9... Nb8
{[%clk 0:02:24]} 10. e4 {[%clk 0:02:23.4]} 10... Nc6 {[%clk 0:02:22.5]} 11. O-O
{[%clk 0:02:19.6]} 11... d5 {[%clk 0:02:20.6]} 12. e5 {[%clk 0:01:46.3]} 12...
Nd7 {[%clk 0:02:19.9]} 13. Be3 {[%clk 0:01:41.1]} 13... Rc8 {[%clk 0:02:17]} 14.
Ne1 {[%clk 0:01:28.6]} 14... cxd4 {[%clk 0:01:30.2]} 15. cxd4 {[%clk 0:01:27.8]}
15... Nb4 {[%clk 0:01:30.1]} 16. f4 {[%clk 0:01:17.3]} 16... Nc2 {[%clk
0:01:29.5]} 17. Nxc2 {[%clk 0:01:07.5]} 17... Rxc2 {[%clk 0:01:30.4]} 18. Rab1
{[%clk 0:00:49.6]} 18... g6 {[%clk 0:01:16.9]} 19. Rfc1 {[%clk 0:00:43.7]} 19...
Qc7 {[%clk 0:01:13.2]} 20. Qd1 {[%clk 0:00:38.1]} 20... Rc8 {[%clk 0:01:11.7]}
21. Nf3 {[%clk 0:00:37.2]} 21... b5 {[%clk 0:00:55]} 22. Ne1 {[%clk 0:00:29.4]}
22... Rxc1 {[%clk 0:00:45.8]} 23. Rxc1 {[%clk 0:00:30.3]} 23... Qb7 {[%clk
0:00:45.8]} 24. Nd3 {[%clk 0:00:29.3]} 24... Rc4 {[%clk 0:00:30.4]} 25. b3
{[%clk 0:00:25.4]} 25... Rc6 {[%clk 0:00:25.2]} 26. Rxc6 {[%clk 0:00:21.6]}
26... Qxc6 {[%clk 0:00:24.7]} 27. Qc1 {[%clk 0:00:21.5]} 27... Qxc1+ {[%clk
0:00:21.9]} 28. Bxc1 {[%clk 0:00:20.7]} 28... Kf8 {[%clk 0:00:20]} 29. Kf2
{[%clk 0:00:19.3]} 29... Ke8 {[%clk 0:00:18.9]} 30. Bd2 {[%clk 0:00:18.8]} 30...
Nb8 {[%clk 0:00:15.4]} 31. Bb4 {[%clk 0:00:16.2]} 31... Nc6 {[%clk 0:00:15]} 32.
Bxe7 {[%clk 0:00:15.6]} 32... Kxe7 {[%clk 0:00:15.9]} 33. Ke3 {[%clk 0:00:15.5]}
33... a5 {[%clk 0:00:08.1]} 34. g3 {[%clk 0:00:14.6]} 34... b4 {[%clk 0:00:08]}
35. Nc5 {[%clk 0:00:13.5]} 35... f6 {[%clk 0:00:07.9]} 36. Nb7 {[%clk
0:00:10.3]} 36... fxe5 {[%clk 0:00:06.5]} 37. fxe5 {[%clk 0:00:08.8]} 37... g5
{[%clk 0:00:06]} 38. Kd3 {[%clk 0:00:05.8]} 38... Kf7 {[%clk 0:00:06.1]} 39. Ke3
{[%clk 0:00:04.8]} 39... Kg6 {[%clk 0:00:06.2]} 40. Nc5 {[%clk 0:00:04.9]} 40...
h5 {[%clk 0:00:04.5]} 41. Nxe6 {[%clk 0:00:04.3]} 41... g4 {[%clk 0:00:03.8]}
42. hxg4 {[%clk 0:00:05.2]} 42... hxg4 {[%clk 0:00:04.1]} 43. Nf4+ {[%clk
0:00:05.7]} 43... Kf5 {[%clk 0:00:03.5]} 44. Nxd5 {[%clk 0:00:06.6]} 44... Ke6
{[%clk 0:00:04.1]} 45. Nf4+ {[%clk 0:00:06.6]} 45... Kf5 {[%clk 0:00:04.9]} 46.
Nd3 {[%clk 0:00:04.9]} 46... Ne7 {[%clk 0:00:04.1]} 47. Nc5 {[%clk 0:00:04.1]}
47... Nd5+ {[%clk 0:00:04.2]} 48. Kd3 {[%clk 0:00:04.3]} 48... Ne7 {[%clk
0:00:03.6]} 49. Nb7 {[%clk 0:00:03.2]} 49... Nd5 {[%clk 0:00:03.7]} 50. Nxa5
{[%clk 0:00:03.1]} 50... Nc3 {[%clk 0:00:04]} 51. Nc6 {[%clk 0:00:02.7]} 51...
Nxa2 {[%clk 0:00:03.9]} 52. d5 {[%clk 0:00:03.2]} 52... Nc3 {[%clk 0:00:03.5]}
53. Kc4 {[%clk 0:00:03.3]} 53... Nd1 {[%clk 0:00:04.2]} 54. Nxb4 {[%clk
0:00:03.6]} 54... Ne3+ {[%clk 0:00:03.4]} 55. Kc5 {[%clk 0:00:03.4]} 55... Ke4
{[%clk 0:00:04]} 56. e6 {[%clk 0:00:03.3]} 56... Nf5 {[%clk 0:00:04.9]} 57. Kc6
{[%clk 0:00:03]} 57... Ke5 {[%clk 0:00:03.6]} 58. Kd7 {[%clk 0:00:03.3]} 58...
Nd4 {[%clk 0:00:01.4]} 59. Nc6+ {[%clk 0:00:03.4]} 1-0